bitfinex-derivatives/quotes_ETHF0:USTF0_20260307
["timestamp","ask_amount","ask_price","bid_price","bid_amount"]
[1772896002066,0.00411161,1986.9,1986.1,0.71015929]
[1772896002266,0.00411161,1986.9,1986.3,0.71015929]
[1772896002469,0.755497,1987.7,1986.5,0.71015929]
[1772896002674,0.755497,1987.7,1986.8,0.71015929]
[1772896003375,0.755497,1987.3,1986.5,0.71015929]
[1772896003575,0.7595269,1987.3,1986.5,0.71015929]
[1772896004269,0.755497,1987.1,1986.5,0.71015929]
[1772896004875,0.0056288,1987.0,1986.5,0.71015929]
[1772896006166,0.0056288,1986.9,1986.5,0.71015929]
[1772896006370,0.7595269,1987.3,1986.5,0.71015929]
[1772896006875,0.0056288,1987.2,1986.5,0.71015929]
[1772896007075,0.755497,1987.2,1986.5,0.71015929]
[1772896007274,0.7611258,1987.0,1986.5,0.71015929]
[1772896007477,0.755497,1987.0,1986.5,0.71015929]
[1772896007674,0.0056288,1986.9,1986.5,0.71015929]
[1772896009173,0.755497,1987.1,1986.5,0.71015929]
[1772896009174,0.0056288,1986.8,1986.5,0.71015929]
[1772896009373,0.755497,1987.1,1986.5,0.71015929]
[1772896009880,0.7595269,1987.3,1986.5,0.71015929]
[1772896013279,0.7595269,1987.3,1986.6,0.71015929]
[1772896018076,0.7595269,1987.3,1986.6,6.2615995]
[1772896018277,0.7595269,1987.3,1986.7,0.71015929]
[1772896021282,0.0040299,1987.3,1986.7,0.71015929]
[1772896023284,0.70248637,1987.3,1986.7,0.71015929]
[1772896023886,0.70248637,1987.3,1986.6,0.70194136]
[1772896025081,0.70248637,1987.3,1986.2,0.70194136]
[1772896025284,0.70248637,1987.3,1986.3,0.70194136]
[1772896027284,0.69845647,1987.2,1986.4,2.47459726]
[1772896027492,0.69845647,1987.2,1986.5,0.70194136]
[1772896029484,0.0040299,1987.3,1986.6,0.70194136]
[1772896029485,0.59310338,1987.3,1986.6,0.70194136]
[1772896029689,6.595,1987.8,1986.8,0.70194136]
[1772896029989,0.0871914,1987.7,1986.8,0.70194136]
[1772896030589,0.0931447,1987.7,1986.8,0.70194136]
[1772896035094,6.70665989,1987.6,1986.8,0.70194136]
[1772896035300,0.11165989,1987.6,1986.9,0.70194136]
[1772896038704,0.11165989,1987.6,1986.8,6.2615995]
[1772896038901,0.11165989,1987.6,1986.8,0.70194136]
[1772896042405,0.08584339,1987.4,1986.8,0.70194136]
[1772896042706,0.08584339,1987.3,1986.8,0.70194136]
[1772896043804,6.67981835,1987.4,1986.8,0.70194136]
[1772896044005,6.67981835,1987.6,1986.8,0.70194136]
[1772896044203,0.08118013,1987.5,1986.8,0.70194136]
[1772896044510,0.08118013,1987.5,1986.9,0.70194136]
[1772896046105,0.08118013,1987.5,1986.7,0.70194136]
[1772896050113,6.595,1987.4,1986.9,0.70194136]
[1772896050412,6.64543405,1987.4,1986.9,0.70194136]
[1772896050614,0.05043405,1987.4,1986.9,0.70194136]
[1772896050814,6.64543405,1987.4,1986.9,0.70194136]
[1772896051014,0.07570734,1987.3,1986.6,0.70194136]
[1772896056419,0.07570734,1987.3,1986.7,0.65864977]
[1772896056614,0.08546022,1987.5,1986.7,0.65864977]
[1772896056815,0.08546022,1987.5,1986.9,0.65864977]
[1772896057015,6.595,1987.6,1987.1,0.65864977]
[1772896057914,6.67749996,1987.6,1987.1,0.65864977]
[1772896058117,6.6009533,1987.7,1987.1,0.65864977]
[1772896058520,6.67971465,1987.7,1987.1,0.65864977]
[1772896060024,0.07643036,1987.4,1986.8,6.91982688]
[1772896060326,0.07643036,1987.4,1986.8,0.65822738]
[1772896061720,0.67495896,1987.0,1986.5,6.90926525]
[1772896062020,0.67495896,1986.8,1986.5,0.64766575]
[1772896062618,0.67495896,1986.8,1986.3,0.64766575]
[1772896066320,0.67495896,1987.2,1986.3,0.64766575]
[1772896066525,6.595,1987.1,1986.7,0.64766575]
[1772896070825,7.26995896,1987.1,1986.7,0.64766575]
[1772896071027,0.67495896,1987.0,1986.7,0.64766575]
[1772896071526,0.67495896,1987.5,1986.7,0.64766575]
[1772896071727,0.67495896,1987.3,1986.7,0.64766575]
[1772896073325,7.27095896,1987.2,1986.7,0.64766575]
[1772896076729,0.67495896,1987.1,1986.7,0.64766575]
[1772896077933,7.27095896,1987.2,1986.7,0.64766575]
[1772896079027,0.67495896,1987.5,1986.7,0.64766575]
[1772896079228,7.27095896,1987.4,1986.7,0.64766575]
[1772896079431,0.67495896,1987.3,1986.7,0.64766575]
[1772896080632,6.596,1987.2,1986.7,0.64766575]
[1772896080834,0.64676505,1987.5,1986.7,0.64766575]
[1772896081030,7.24276505,1987.4,1986.8,0.65037732]
[1772896081335,0.64676505,1987.3,1986.7,0.65037732]
[1772896084433,0.67549557,1987.1,1986.7,0.65037732]
[1772896084636,0.67549557,1987.0,1986.7,0.65037732]
[1772896087939,0.67549557,1987.0,1986.6,0.70654571]
[1772896088134,0.67549557,1987.0,1986.5,0.70654571]
[1772896088646,0.67549557,1987.0,1986.4,0.70654571]
[1772896088832,0.67549557,1987.0,1986.2,6.96814521]
[1772896089035,0.67549557,1987.0,1986.3,0.70654571]
[1772896090034,0.67549557,1987.0,1986.2,6.2615995]
[1772896090035,0.67549557,1987.0,1986.2,6.96814521]
[1772896090235,0.67549557,1987.0,1986.2,0.70654571]
[1772896090440,0.67549557,1986.9,1986.2,0.70654571]
[1772896091140,0.67549557,1986.9,1986.1,0.70654571]
[1772896092541,0.67549557,1986.7,1986.0,0.70654571]
[1772896092743,0.67549557,1986.5,1986.0,0.70654571]
[1772896093845,0.67549557,1986.7,1986.1,0.70654571]
[1772896094044,6.596,1986.6,1986.3,0.70654571]
[1772896094244,7.27149557,1986.8,1986.3,0.70654571]
[1772896094639,6.596,1986.7,1986.3,0.70654571]
[1772896096048,0.67549557,1986.8,1986.3,0.70654571]
[1772896096249,6.596,1986.7,1986.3,0.70654571]
[1772896096447,0.67549557,1986.8,1986.3,0.70654571]
[1772896096646,6.596,1986.7,1986.3,0.70654571]
[1772896097349,0.67549557,1987.1,1986.3,0.70654571]
[1772896097552,0.67549557,1986.9,1986.3,0.70654571]
[1772896098752,0.67549557,1987.1,1986.6,0.70654571]
[1772896099051,0.67549557,1987.1,1986.4,0.70654571]
[1772896102950,0.67549557,1987.1,1986.6,0.70654571]
[1772896103150,7.27149557,1987.1,1986.6,0.70654571]
[1772896103554,0.67549557,1987.0,1986.6,0.70654571]
[1772896106356,0.67549557,1987.0,1986.4,0.70654571]
[1772896106955,7.27149557,1987.0,1986.4,0.70654571]
[1772896107758,0.67549557,1987.6,1986.4,0.70654571]
[1772896107949,0.67549557,1987.4,1986.5,0.70654571]
[1772896108353,7.27149557,1987.3,1986.5,0.70654571]
[1772896108555,6.596,1987.2,1986.5,0.70654571]
[1772896108754,0.67549557,1987.1,1986.6,0.70654571]
[1772896118266,0.67549557,1987.1,1986.5,0.63181412]
[1772896118469,0.67845016,1987.0,1986.5,0.63181412]
[1772896122370,0.67845016,1987.0,1986.4,0.63181412]
[1772896123072,0.67845016,1987.0,1986.3,6.89341362]
[1772896123371,0.67845016,1987.0,1986.4,0.63181412]
[1772896127170,0.67845016,1987.0,1986.4,6.89341362]
[1772896127370,0.67845016,1987.0,1986.5,0.63181412]
[1772896130476,7.27445016,1986.9,1986.5,0.63181412]
[1772896132878,0.67845016,1986.8,1986.3,0.63181412]
[1772896133079,0.67845016,1986.8,1986.2,6.89341362]
[1772896133477,0.67845016,1986.8,1986.3,0.63181412]
[1772896135782,0.67845016,1986.8,1986.2,0.63181412]
[1772896136277,0.67845016,1986.8,1986.1,6.2615995]
[1772896136478,0.67845016,1986.8,1986.1,6.89341362]
[1772896137178,0.67845016,1986.8,1986.0,6.89341362]
[1772896137578,0.67845016,1986.8,1986.1,0.63181412]
[1772896140685,0.68706648,1986.6,1986.1,0.63181412]
[1772896152996,0.68706648,1986.6,1985.9,0.00395637]
[1772896153293,0.68706648,1986.6,1986.0,0.66153575]
[1772896158401,0.68706648,1986.6,1985.9,0.66549212]
[1772896160499,0.68793723,1986.4,1985.9,0.66549212]
[1772896160704,6.597,1986.3,1985.9,0.66549212]
[1772896160903,6.60312996,1986.3,1985.9,0.66549212]
[1772896164603,7.29106719,1986.3,1985.9,0.66549212]
[1772896166008,0.68793723,1986.2,1985.9,0.00395637]
[1772896166305,0.68793723,1986.2,1985.8,6.2615995]
[1772896166306,0.68793723,1986.2,1985.8,6.92313525]
[1772896166910,0.68793723,1986.2,1985.9,0.66153575]
[1772896167308,0.68793723,1986.2,1985.9,0.66551855]
[1772896169916,7.29106719,1986.3,1985.9,0.66551855]
[1772896171116,0.68793723,1986.2,1985.9,0.66551855]
[1772896171316,7.29106719,1986.3,1985.9,0.66551855]
[1772896172116,0.67451645,1986.2,1985.9,0.66551855]
[1772896173209,0.67451645,1986.2,1985.9,6.92711805]
[1772896176720,7.27764641,1986.3,1986.0,0.65653562]
[1772896178519,0.68064641,1986.3,1986.0,0.65653562]
[1772896178719,6.60312996,1986.3,1986.0,0.65653562]
[1772896180824,0.67451645,1986.2,1985.9,6.10123725]
[1772896181019,0.67451645,1986.2,1985.9,0.65653562]
[1772896181524,7.27764641,1986.3,1985.9,0.65653562]
[1772896181825,7.27764641,1986.3,1985.9,0.66277439]
[1772896182025,0.00612996,1986.3,1985.9,0.66277439]
[1772896186227,7.27151645,1986.7,1986.1,0.65653562]
[1772896187227,0.67451645,1986.6,1986.1,0.65653562]
[1772896188828,0.67451645,1986.6,1985.9,0.66277439]
[1772896193226,0.67451645,1986.6,1986.0,0.65653562]
[1772896201134,7.23558846,1986.5,1986.0,0.65653562]
[1772896202735,0.63347057,1986.4,1986.0,0.65653562]
[1772896206725,0.63347057,1986.4,1985.9,0.66371513]
[1772896206932,0.63347057,1986.4,1985.9,0.00623877]
[1772896209334,0.63347057,1986.4,1985.9,0.66371513]
[1772896210139,0.63347057,1986.3,1985.7,0.65747636]
[1772896210334,0.63347057,1986.1,1985.5,0.65747636]
[1772896210634,0.63347057,1986.0,1985.5,0.65747636]
[1772896210836,0.63347057,1986.0,1985.6,0.65747636]
[1772896211335,0.63347057,1986.0,1985.6,0.66373398]
[1772896213037,6.598,1986.1,1985.6,0.66373398]
[1772896213229,7.23147057,1986.1,1985.6,0.66373398]
[1772896213634,0.63347057,1986.0,1985.6,0.66373398]
[1772896218733,0.63347057,1986.0,1985.6,0.00625762]
[1772896219038,0.63347057,1985.8,1985.4,0.65747636]
[1772896219843,0.63347057,1985.8,1985.4,0.66359376]
[1772896222641,0.63347057,1986.0,1985.4,0.66359376]
[1772896223340,0.63347057,1986.2,1985.4,0.66359376]
[1772896223541,7.23147057,1986.2,1985.4,0.66359376]
[1772896223942,0.63347057,1986.1,1985.4,0.66359376]
[1772896235045,0.66890374,1986.4,1985.5,0.6361482]
[1772896235250,0.66890374,1986.4,1985.6,0.6361482]
[1772896240159,0.66890374,1986.4,1985.7,0.6361482]
[1772896240854,0.66890374,1986.3,1985.7,0.6361482]
[1772896242457,0.66890374,1986.6,1985.7,0.6361482]
[1772896242659,0.66890374,1986.5,1985.7,0.6361482]
[1772896247067,6.597,1986.4,1985.7,0.6361482]
[1772896247271,0.66890374,1986.3,1985.7,0.6361482]
[1772896247669,0.66890374,1986.3,1985.4,6.91461244]
[1772896247969,0.66890374,1986.3,1985.5,0.6361482]
[1772896252372,0.66890374,1986.3,1985.4,0.0061174]
[1772896252578,0.66890374,1986.3,1984.6,13.21643987]
[1772896252579,0.66890374,1985.9,1985.1,0.6361482]
[1772896252774,0.66890374,1985.7,1985.1,0.6361482]
[1772896253473,0.66890374,1985.7,1985.1,0.64003632]
[1772896258675,0.66890374,1985.7,1985.1,0.00388812]
[1772896260774,0.66890374,1985.7,1985.0,0.6361482]
[1772896260775,0.66890374,1985.7,1984.8,6.92045108]
[1772896260975,6.597,1985.8,1984.7,0.64810424]
[1772896260976,0.5983609,1985.5,1984.7,0.64810424]
[1772896261882,0.5983609,1985.5,1984.7,0.65396378]
[1772896262580,0.64612988,1985.3,1984.7,0.65396378]
[1772896262780,0.64612988,1985.2,1984.7,0.65396378]
[1772896263882,0.0041893,1985.3,1984.7,0.65396378]
[1772896264085,6.6021893,1985.3,1984.7,0.65396378]
[1772896264285,7.24831918,1985.3,1984.7,0.65396378]
[1772896264679,0.64612988,1985.2,1984.7,0.65396378]
[1772896267790,0.65031918,1985.3,1984.7,0.65396378]
[1772896267989,7.24931918,1985.3,1984.7,0.65396378]
[1772896269183,0.65031918,1985.3,1984.7,0.65396378]
[1772896269486,7.24931918,1985.3,1984.7,0.65396378]
[1772896270184,0.64612988,1985.2,1984.7,0.65396378]
[1772896270585,0.64612988,1985.2,1984.7,0.00585954]
[1772896272882,0.64612988,1985.2,1984.7,0.59434053]
[1772896273082,0.64612988,1985.2,1984.7,0.00585954]
[1772896277487,0.64612988,1985.2,1984.7,0.59434053]
[1772896277678,0.64612988,1985.2,1984.7,0.00585954]
[1772896283285,0.64612988,1985.2,1984.7,0.59434053]
[1772896289096,0.64612988,1985.2,1984.7,0.00585954]
[1772896289992,0.64612988,1985.2,1984.7,0.59434053]
[1772896290189,0.64612988,1985.2,1984.7,0.00585954]
[1772896291189,0.64612988,1985.2,1984.7,0.59434053]
[1772896298501,0.64612988,1985.2,1984.7,0.00585954]
[1772896299904,2.4231917,1985.2,1984.7,0.00585954]
[1772896300105,0.57750597,1985.1,1984.7,0.00585954]
[1772896300605,0.57750597,1985.1,1984.5,6.85843998]
[1772896301407,0.57750597,1985.1,1984.5,6.863545]
[1772896304508,0.57750597,1985.1,1984.5,0.59119816]
[1772896306205,0.57750597,1985.1,1984.5,0.00510502]
[1772896306512,0.57750597,1984.5,1984.1,0.58609314]
[1772896307307,0.57750597,1984.5,1984.1,0.59053641]
[1772896311616,7.17650597,1985.0,1984.4,0.58609314]
[1772896313115,0.57750597,1984.9,1984.4,0.58609314]
[1772896319525,7.17650597,1985.0,1984.4,0.58609314]
[1772896320121,0.57750597,1984.9,1984.4,0.58609314]
[1772896331729,6.603,1985.0,1984.5,0.60232807]
[1772896332636,7.16759468,1985.0,1984.5,0.60232807]
[1772896334939,7.17159468,1985.0,1984.5,0.60232807]
[1772896336041,0.56459468,1984.9,1984.5,0.60232807]
[1772896337142,0.0041893,1985.3,1984.5,0.60232807]
[1772896337343,0.56459468,1985.1,1984.5,0.60232807]
[1772896337543,6.61,1985.0,1984.5,0.60232807]
[1772896337738,7.17459468,1985.1,1984.5,0.60232807]
[1772896338838,0.56459468,1985.0,1984.5,0.60232807]
[1772896342049,6.616,1985.0,1984.5,0.60232807]
[1772896342348,7.18059468,1985.0,1984.5,0.60232807]
[1772896346248,0.56459468,1985.2,1984.7,0.60232807]
[1772896346554,0.56459468,1985.1,1984.7,0.60232807]
[1772896347855,0.56459468,1985.1,1984.5,0.60232807]
[1772896351353,0.56459468,1985.1,1984.4,0.60232807]
[1772896352754,0.61006406,1984.9,1984.4,0.60232807]
[1772896354957,6.638,1985.0,1984.5,0.55542918]
[1772896355456,7.24806406,1985.0,1984.5,0.55542918]
[1772896356361,0.61006406,1985.9,1985.0,0.55542918]
[1772896356658,6.28682028,1985.8,1985.3,0.55542918]
[1772896356962,7.25006406,1986.1,1985.3,0.55542918]
[1772896357258,7.25626241,1986.1,1985.6,0.55542918]
[1772896357463,5.45373113,1986.0,1985.6,0.5603046]
[1772896358157,7.25626241,1986.1,1985.6,0.5603046]
[1772896358553,5.45373113,1986.0,1985.6,0.5603046]
[1772896359257,6.64619835,1986.1,1985.6,0.5603046]
[1772896359454,12.09992948,1986.1,1985.6,0.5603046]
[1772896360261,5.45992948,1986.1,1985.6,0.5603046]
[1772896361058,6.06999354,1986.1,1985.6,0.5603046]
[1772896361263,0.61006406,1986.0,1985.6,0.00487542]
[1772896361862,0.61006406,1986.0,1985.6,0.5603046]
[1772896368765,0.61006406,1985.8,1985.6,0.00487542]
[1772896370167,0.61006406,1985.8,1985.4,0.55542918]
[1772896371368,0.61006406,1985.8,1985.4,0.56116551]
[1772896374170,0.61006406,1985.6,1985.4,0.00573633]
[1772896374370,0.61006406,1985.6,1985.2,0.55542918]
[1772896374567,6.06379519,1985.5,1985.2,0.55542918]
[1772896374764,0.61006406,1985.5,1985.2,0.55542918]
[1772896374969,0.61006406,1985.8,1985.2,0.55542918]
[1772896375369,0.61006406,1985.8,1985.2,0.55938479]
[1772896376062,0.61626241,1986.1,1985.2,0.55938479]
[1772896376262,0.61006406,1985.9,1985.2,0.55938479]
[1772896379275,0.61006406,1985.9,1985.3,0.55542918]
[1772896380175,0.61006406,1985.9,1985.2,0.55938479]
[1772896380478,0.61006406,1985.9,1985.2,0.00395561]
[1772896385581,0.61006406,1985.9,1985.2,4.18479943]
[1772896386077,0.61006406,1985.9,1985.2,0.00395561]
[1772896386384,0.61006406,1985.9,1985.2,4.18479943]
[1772896387583,0.61006406,1985.9,1985.2,0.00395561]
[1772896388587,0.80279635,1985.8,1985.2,0.7550794]
[1772896388781,0.80279635,1985.8,1985.4,0.75112379]
[1772896396787,0.80279635,1985.9,1985.4,0.75112379]
[1772896397292,0.80279635,1985.9,1985.5,0.75112379]
[1772896398392,0.00619835,1986.1,1985.5,4.9290717]
[1772896398591,0.02982537,1986.1,1985.6,0.75112379]
[1772896399291,0.02982537,1986.1,1985.6,4.9290717]
[1772896399492,0.02982537,1986.1,1985.7,0.75112379]
[1772896399693,0.00619835,1986.1,1985.7,0.75112379]
[1772896400094,0.13566397,1986.4,1985.8,0.75112379]
[1772896400989,0.14195733,1986.4,1985.8,0.75112379]
[1772896401694,0.14195733,1986.4,1985.9,0.75112379]
[1772896404099,0.00629336,1986.4,1985.9,0.75112379]
[1772896404593,0.15965808,1986.4,1985.9,0.75112379]
[1772896405198,0.00629336,1986.4,1985.9,0.75112379]
[1772896405399,0.17063237,1986.4,1985.9,0.75112379]
[1772896405899,0.16433901,1986.5,1985.9,0.75112379]
[1772896407097,0.16874145,1986.5,1985.9,0.75112379]
[1772896408498,0.16874145,1986.5,1986.0,0.75112379]
[1772896409095,0.15616025,1986.5,1986.0,0.75112379]
[1772896409302,0.15616025,1986.5,1986.1,0.75112379]
[1772896412403,0.15616025,1986.5,1985.9,0.7697855]
[1772896418504,0.10492953,1986.5,1985.9,2.54422116]
[1772896418701,0.10492953,1986.5,1986.0,0.7697855]
[1772896419102,0.10052709,1986.3,1985.8,4.17794791]
[1772896419302,0.10052709,1986.3,1985.9,0.7697855]
[1772896420303,0.10052709,1986.3,1985.7,4.94773341]
[1772896420603,0.00440244,1986.5,1985.6,6.27254717]
[1772896420604,0.09003541,1986.1,1985.6,0.7697855]
[1772896432618,1.77443566,1986.0,1985.4,0.7697855]
[1772896432814,0.02934687,1985.9,1985.4,0.7697855]
[1772896436722,1.77443566,1986.0,1985.4,0.7697855]
[1772896436923,0.00771954,1985.9,1985.4,0.7697855]
[1772896437123,1.77669301,1986.0,1985.4,0.7697855]
[1772896439825,6.67,1985.9,1985.4,0.7697855]
[1772896443427,1.77443566,1986.0,1985.4,0.7697855]
[1772896443629,6.67,1985.9,1985.4,0.7697855]
[1772896443825,6.67,1985.8,1985.4,0.7697855]
[1772896448332,6.672,1985.7,1985.4,0.7697855]
[1772896452235,6.672,1985.7,1985.3,0.71999111]
[1772896454640,1.77443566,1986.0,1985.3,0.71999111]
[1772896454937,6.679,1985.9,1985.3,0.71999111]
[1772896457239,6.683,1985.8,1985.3,0.71999111]
[1772896462444,8.45743566,1985.8,1985.2,0.7319173]
[1772896462944,6.694,1985.7,1985.2,0.7319173]
[1772896463140,6.694,1985.6,1985.2,0.7319173]
[1772896463440,6.695,1985.6,1985.2,0.7319173]
[1772896469146,6.695,1985.6,1985.3,0.72783112]
[1772896469344,6.706,1985.6,1985.3,0.72783112]
[1772896469542,4.22320403,1986.1,1985.3,0.72783112]
[1772896469742,7.17746218,1986.0,1985.4,0.72783112]
[1772896469937,5.99763969,1986.2,1985.4,0.72783112]
[1772896469938,6.707,1985.9,1985.4,0.72783112]
[1772896473443,6.713,1985.8,1985.4,0.72783112]
[1772896473644,6.714,1985.7,1985.4,0.72783112]
[1772896475743,6.718,1985.7,1985.4,0.72783112]
[1772896476646,4.22320403,1986.2,1985.4,0.72783112]
[1772896476847,7.19082356,1986.1,1985.4,0.72783112]
[1772896477045,0.47082356,1986.0,1985.4,0.72783112]
[1772896477346,0.47078835,1985.9,1985.4,0.72783112]
[1772896477546,6.72,1986.1,1985.4,0.72783112]
[1772896477847,0.47078835,1986.0,1985.4,0.72783112]
[1772896478048,0.47078835,1985.9,1985.4,0.72783112]
[1772896478248,6.724,1985.8,1985.4,0.72783112]
[1772896478945,6.724,1985.8,1985.5,0.73020863]
[1772896480141,6.724,1985.8,1985.4,4.90911986]
[1772896480350,6.724,1985.8,1985.5,0.72916626]
[1772896480845,6.724,1985.8,1985.4,4.1799536]
[1772896481046,6.724,1985.8,1985.4,4.90911986]
[1772896482347,6.724,1985.8,1985.4,4.1799536]
[1772896482551,6.724,1985.8,1985.4,4.90947932]
[1772896485254,6.724,1985.8,1985.4,0.72952572]
[1772896490559,6.724,1985.8,1985.4,0.7375948]
[1772896491056,6.724,1985.8,1985.3,4.9175484]
[1772896499163,6.724,1985.8,1985.4,4.1799536]
[1772896501165,6.724,1985.8,1985.2,6.27650278]
[1772896501365,6.724,1985.8,1985.2,0.00395561]
[1772896503766,6.724,1985.8,1985.2,0.73418226]
[1772896504070,6.772,1985.7,1985.2,0.73418226]
[1772896504269,6.772,1985.6,1985.2,0.73418226]
[1772896504568,6.773,1985.8,1985.2,0.73418226]
[1772896505771,4.22320403,1986.3,1985.2,0.73418226]
[1772896505966,7.24553057,1986.2,1985.3,0.73573376]
[1772896506171,0.47053057,1986.1,1985.3,0.73573376]
[1772896506372,6.775,1986.2,1985.3,0.73573376]
[1772896506574,0.47053521,1986.1,1985.3,0.73573376]
[1772896506871,6.777,1986.0,1985.3,0.73573376]
[1772896511162,4.22320403,1986.3,1985.3,0.73573376]
[1772896511367,7.25554725,1986.2,1985.3,0.73573376]
[1772896511572,0.47054725,1986.1,1985.3,0.73573376]
[1772896511769,6.785,1986.2,1985.3,0.73573376]
[1772896512073,7.25653064,1986.1,1985.3,0.73573376]
[1772896512371,6.786,1986.1,1985.3,0.73573376]
[1772896516074,6.794,1986.0,1985.3,0.73573376]
[1772896523184,4.22623664,1986.3,1985.3,0.73573376]
[1772896523476,7.27748654,1986.2,1985.3,0.73573376]
[1772896523672,0.47048654,1986.1,1985.3,0.73573376]
[1772896523872,6.807,1986.2,1985.3,0.73573376]
[1772896524075,0.47048654,1986.1,1985.3,0.73573376]
[1772896524383,6.807,1986.2,1985.3,0.73573376]
[1772896524581,0.47048313,1986.1,1985.3,0.73573376]
[1772896524880,6.807,1986.2,1985.3,0.73573376]
[1772896525081,0.47048313,1986.1,1985.3,0.73573376]
[1772896525280,6.807,1986.2,1985.3,0.73573376]
[1772896525480,0.4704799,1986.1,1985.3,0.73573376]
[1772896525776,6.807,1986.2,1985.3,0.73573376]
[1772896525979,0.4704799,1986.1,1985.3,0.73573376]
[1772896526178,4.22623664,1986.4,1985.4,0.70351853]
[1772896526375,7.28246931,1986.3,1985.4,0.70351853]
[1772896526580,0.47046931,1986.2,1985.4,0.70351853]
[1772896526780,4.22623664,1986.4,1985.4,0.70351853]
[1772896526980,0.25611244,1986.5,1985.6,0.70351853]
[1772896527184,6.813,1986.4,1985.6,0.70351853]
[1772896527378,0.00440244,1986.5,1985.6,0.70351853]
[1772896527579,6.81840244,1986.5,1985.8,0.70400529]
[1772896529088,6.82040244,1986.5,1985.8,0.70400529]
[1772896529288,0.00440244,1986.5,1985.8,0.70400529]
[1772896530585,0.00440244,1986.5,1986.0,0.70029333]
[1772896534995,6.821,1986.6,1986.0,0.70029333]
[1772896535901,6.82549142,1986.6,1986.0,0.70029333]
[1772896536503,0.00449142,1986.6,1986.0,0.70029333]
[1772896537804,0.00449142,1986.6,1985.7,6.27254717]
[1772896537805,6.819,1986.8,1986.2,0.69989332]
[1772896538904,0.00533815,1986.8,1986.2,0.69989332]
[1772896539106,6.82533815,1986.8,1986.2,0.69989332]
[1772896552007,0.00533815,1986.8,1986.2,0.69989332]
[1772896552213,6.83033815,1986.8,1986.2,0.69989332]
[1772896561512,0.00533815,1986.8,1986.2,0.69989332]
[1772896561716,6.83533815,1986.8,1986.2,0.69989332]
[1772896567223,6.83533815,1986.8,1986.3,0.71434692]
[1772896569520,0.00533815,1986.8,1986.3,0.71434692]
[1772896574026,6.85533815,1986.8,1986.3,0.71434692]
[1772896575229,1.7743655,1986.6,1986.1,6.27254717]
[1772896575624,8.62970365,1986.8,1986.1,6.27254717]
[1772896575826,8.62970365,1986.8,1986.0,6.27254717]
[1772896576026,0.00533815,1986.8,1986.1,0.70736059]
[1772896576233,0.00533815,1986.8,1986.2,0.70736059]
[1772896576532,6.856,1986.7,1986.3,0.70736239]
[1772896580433,6.865,1986.9,1986.4,0.71307525]
[1772896581329,6.86860025,1986.9,1986.4,0.71307525]
[1772896586638,6.86860025,1986.9,1986.3,6.27254717]
[1772896587637,6.86860025,1986.9,1986.3,6.98675496]
[1772896587836,0.00360025,1986.9,1986.3,6.98675496]
[1772896588034,6.881,1986.8,1986.4,0.71420779]
[1772896589838,0.00360025,1986.9,1986.4,0.71420779]
[1772896590038,6.885,1986.8,1986.4,0.71420779]
[1772896596348,4.22623664,1987.4,1986.4,0.71420779]
[1772896596549,7.36613498,1987.3,1986.4,0.71420779]
[1772896596749,7.36613498,1987.2,1986.4,0.71420779]
[1772896596945,6.896,1987.2,1986.4,0.71420779]
[1772896597348,6.90147921,1987.2,1986.4,0.71420779]
[1772896602851,0.00547921,1987.2,1986.4,0.71420779]
[1772896603053,6.905,1987.1,1986.4,0.71420779]
[1772896603651,6.907,1987.1,1986.5,0.69744932]
[1772896603852,0.00547921,1987.2,1986.6,6.96999649]
[1772896604050,0.00547921,1987.2,1986.7,0.69744932]
[1772896605850,6.91,1987.6,1986.7,0.69744932]
[1772896606954,6.91485409,1987.6,1986.7,0.69744932]
[1772896607156,6.91485409,1987.6,1986.8,0.69846913]
[1772896611664,6.91485409,1987.6,1986.6,47.7806453]
[1772896612063,6.91485409,1987.6,1986.7,0.70324892]
[1772896613265,6.91485409,1987.6,1986.6,6.27739638]
[1772896613564,6.91485409,1987.6,1986.7,0.70751071]
[1772896614761,0.00485409,1987.6,1986.7,0.70751071]
[1772896615063,6.922,1987.5,1986.7,0.70751071]
[1772896623272,6.93,1987.4,1986.7,0.70751071]
[1772896623874,0.00485409,1987.6,1986.7,0.70751071]
[1772896624171,6.93,1987.5,1986.7,0.70751071]
[1772896625280,2.24348934,1987.4,1986.4,6.27254717]
[1772896625473,0.46960696,1987.3,1986.3,7.0005631]
[1772896625776,1.77390369,1987.4,1986.3,7.0005631]
[1772896625973,0.46964485,1987.3,1986.3,7.0005631]
[1772896626272,1.77390369,1987.4,1986.3,7.0005631]
[1772896626481,0.46969351,1987.3,1986.3,7.0054947]
[1772896626774,1.77390369,1987.4,1986.3,7.0054947]
[1772896626974,0.46969351,1987.3,1986.3,7.0054947]
[1772896627174,1.77390369,1987.4,1986.3,7.0054947]
[1772896627369,0.46969837,1987.3,1986.3,0.0049316]
[1772896627575,0.46969837,1987.2,1986.3,0.0049316]
[1772896627775,1.77390369,1987.4,1986.3,0.0049316]
[1772896627972,0.46969837,1987.3,1986.3,0.0049316]
[1772896628174,0.46969837,1987.2,1986.3,0.0049316]
[1772896628369,1.77390369,1987.4,1986.3,0.0049316]
[1772896628576,0.46967414,1987.3,1986.3,0.0049316]
[1772896628774,0.46967414,1987.2,1986.3,0.0049316]
[1772896628976,1.77390369,1987.4,1986.3,0.73793298]
[1772896629275,0.46967414,1987.3,1986.3,0.73793298]
[1772896629475,0.46967414,1987.2,1986.3,0.73793298]
[1772896629675,1.77390369,1987.4,1986.3,0.73793298]
[1772896629873,0.46964719,1987.3,1986.3,0.73793298]
[1772896630074,1.77390369,1987.4,1986.3,0.73793298]
[1772896630276,5.99238278,1987.4,1986.3,0.73793298]
[1772896630980,5.99238278,1987.4,1986.3,0.0049316]
[1772896632079,5.99238278,1987.4,1986.3,0.74373839]
[1772896633081,1.77390369,1987.4,1986.3,0.74373839]
[1772896633680,5.99116324,1987.4,1986.3,0.74373839]
[1772896634682,6.943,1987.3,1986.3,0.74373839]
[1772896640191,0.46923082,1987.2,1986.3,0.74373839]
[1772896640389,6.943,1987.3,1986.3,0.74373839]
[1772896640591,0.46922357,1987.2,1986.3,0.74373839]
[1772896640889,6.943,1987.3,1986.3,0.0049316]
[1772896641088,0.46922357,1987.2,1986.3,0.0049316]
[1772896641288,6.943,1987.3,1986.3,0.0049316]
[1772896641484,0.46926697,1987.2,1986.3,0.0049316]
[1772896641791,2.24317066,1987.1,1986.0,0.74127477]
[1772896641989,0.46926697,1987.0,1986.0,0.74127477]
[1772896642291,6.961,1986.9,1986.0,0.74127477]
[1772896642989,6.961,1986.9,1986.0,0.74701811]
[1772896643492,6.961,1986.9,1986.0,0.00574334]
[1772896647297,1.77390369,1986.8,1986.0,0.00574334]
[1772896647590,6.240033,1987.1,1986.0,0.7494675]
[1772896647795,7.44198601,1987.0,1986.0,0.7494675]
[1772896647998,6.973,1987.0,1986.0,0.7494675]
[1772896653707,6.983,1986.9,1986.0,0.7494675]
[1772896661211,6.994,1986.8,1986.0,0.7494675]
[1772896661410,6.994,1986.8,1986.3,1.77429897]